bitfinex/quotes_SOLUSD_20250908
["timestamp","ask_amount","ask_price","bid_price","bid_amount"]
[1757305395224,37.24,207.94,207.93,0.71]
[1757305395809,44.44959199,207.94,207.93,0.03]
[1757305396126,39.64051245,207.94,207.93,0.71]
[1757305398007,1.98590096,207.98,207.93,0.71]
[1757305398206,37.24,207.97,207.93,0.71]
[1757305398703,37.24,207.96,207.94,2.40051245]
[1757305398909,37.24,207.95,207.94,2.40051245]
[1757305399304,37.24,207.95,207.93,7.23978952]
[1757305399505,37.24,207.95,207.94,0.68]
[1757305400023,37.24,207.95,207.94,5.48907954]
[1757305400216,37.24,207.95,207.94,0.68]
[1757305402926,39.64051245,207.95,207.93,0.03]
[1757305403140,2.40051245,207.94,207.93,0.03]
[1757305406010,37.24,207.95,207.93,0.03]
[1757305406211,2.46051245,207.98,207.93,5.51925175]
[1757305406528,37.24,207.97,207.94,0.68]
[1757305406710,39.64051245,207.97,207.94,0.68]
[1757305406913,2.40051245,207.96,207.94,0.68]
[1757305407138,2.40051245,207.95,207.93,0.03]
[1757305407428,37.24,207.94,207.93,0.71]
[1757305410739,37.3,207.94,207.93,0.71]
[1757305411237,37.3,207.94,207.93,5.51931082]
[1757305412543,0.06,207.94,207.93,21.51541728]
[1757305412916,0.06,207.94,207.93,27.0347281]
[1757305413234,0.06,207.94,207.93,21.51541728]
[1757305414036,0.06,207.94,207.93,101.61541728]
[1757305414720,0.06,207.94,207.93,116.05411299]
[1757305417221,0.06,207.94,207.93,95.24869571]
[1757305417426,0.06,207.94,207.93,80.81]
[1757305417632,0.06,207.94,207.93,85.61931082]
[1757305419227,0.06,207.94,207.93,80.81]
[1757305420518,0.06,207.94,207.93,0.71]
[1757305420722,0.06,207.94,207.93,33.91982327]
[1757305421020,37.28,207.94,207.93,33.91982327]
[1757305421924,0.06,207.94,207.93,47.51541728]
[1757305422227,0.06,207.94,207.93,127.61541728]
[1757305423120,0.06,207.94,207.93,142.05411299]
[1757305424441,0.06,207.94,207.93,128.45851898]
[1757305424634,0.06,207.94,207.93,114.01982327]
[1757305426157,0.06,207.94,207.93,113.33982327]
[1757305426528,0.06,207.94,207.93,33.23982327]
[1757305428343,0.06,207.94,207.93,26.03]
[1757305429441,0.06,207.94,207.93,0.03]
[1757305429743,3.12051245,207.94,207.93,0.03]
[1757305430354,4.47170958,207.94,207.93,0.03]
[1757305431734,9.28078912,207.94,207.93,0.03]
[1757305432244,5.52907954,207.94,207.93,0.03]
[1757305432446,9.28078912,207.94,207.93,0.03]
[1757305435429,11.20706106,207.94,207.93,0.03]
[1757305436958,9.28078912,207.94,207.93,0.03]
[1757305438169,3.81170958,207.94,207.93,0.03]
[1757305438460,41.03170958,207.94,207.93,0.03]
[1757305439558,3.81170958,207.94,207.93,0.03]
[1757305439750,41.03170958,207.94,207.93,0.03]
[1757305440258,3.81170958,207.94,207.93,0.03]
[1757305440557,37.28,207.94,207.93,0.7]
[1757305440764,0.06,207.94,207.93,0.7]
[1757305441058,37.28,207.94,207.93,0.03]
[1757305441741,37.28,207.94,207.93,0.7]
[1757305445963,37.28,207.94,207.93,0.03]
[1757305446462,37.28,207.94,207.93,0.73]
[1757305447368,37.28,207.94,207.93,9.2910204]
[1757305449042,37.28,207.94,207.93,4.48170958]
[1757305449364,37.28,207.94,207.93,9.2910204]
[1757305452064,0.06,207.94,207.93,9.2910204]
[1757305452550,0.06,207.94,207.93,102.98661441]
[1757305452751,0.06,207.94,207.93,117.42531012]
[1757305458280,0.06,207.94,207.93,146.28531012]
[1757305459567,37.28,207.97,207.96,39.59559401]
[1757305459773,0.06,207.97,207.96,44.04730359]
[1757305460473,0.06,207.97,207.96,48.85592063]
[1757305463179,0.06,207.98,207.96,157.81592063]
[1757305463375,0.06,207.98,207.97,4.45170958]
[1757305464086,0.06,207.98,207.97,0.7]
[1757305464470,0.06,207.98,207.97,23.69531734]
[1757305464864,0.06,207.98,207.97,19.94360776]
[1757305465070,0.06,207.98,207.97,23.69531734]
[1757305467967,0.06,207.98,207.97,103.79531734]
[1757305468467,0.06,207.98,207.97,132.65531734]
[1757305477898,0.06,207.98,207.97,136.55632985]
[1757305478888,0.06,207.99,207.97,150.15192386]
[1757305479092,0.06,207.99,207.98,4.40170958]
[1757305479494,0.06,207.99,207.98,11.13446786]
[1757305482787,0.06,207.99,207.98,91.23446786]
[1757305487195,0.06,207.99,207.98,90.58446786]
[1757305487708,0.06,207.99,207.98,91.23446786]
[1757305487890,0.06,207.99,207.98,90.58446786]
[1757305488605,0.06,207.99,207.98,119.44446786]
[1757305488806,0.06,207.99,207.98,120.09446786]
[1757305489310,0.06,207.99,207.98,119.44446786]
[1757305489507,0.06,207.99,207.98,120.09446786]
[1757305490097,0.06,207.99,207.98,119.44446786]
[1757305490400,0.06,207.99,207.98,118.74047338]
[1757305493892,0.06,207.99,207.98,118.74047338]
[1757305495309,0.06,207.99,207.98,118.09047338]
[1757305495813,0.06,207.99,207.98,118.74047338]
[1757305501625,0.06,207.99,207.98,118.09047338]
[1757305502017,0.06,207.99,207.98,115.69275828]
[1757305502217,0.06,207.99,207.98,116.34275828]
[1757305502518,0.06,207.99,207.98,118.74047338]
[1757305502710,0.06,207.99,207.98,116.34275828]
[1757305502913,0.06,207.99,207.98,118.74047338]
[1757305503419,0.76,207.99,207.98,1.63460365]
[1757305503623,3.1577151,207.99,207.98,0.03]
[1757305503813,3.1577151,207.99,207.97,0.03]
[1757305504022,2.3977151,207.98,207.95,0.03]
[1757305504210,2.3977151,207.96,207.95,0.03]
[1757305504396,0.6,207.97,207.95,0.03]
[1757305504598,2.9977151,207.96,207.95,0.03]
[1757305505802,40.1777151,207.96,207.95,0.03]
[1757305507129,2.9977151,207.96,207.95,0.03]
[1757305507327,40.1777151,207.96,207.95,0.03]
[1757305509828,44.98633214,207.96,207.95,0.03]
[1757305510608,40.1777151,207.96,207.95,0.03]
[1757305511133,2.9977151,207.96,207.95,0.03]
[1757305511332,40.1777151,207.96,207.95,0.03]
[1757305512236,2.9977151,207.96,207.95,0.03]
[1757305512440,40.1777151,207.96,207.95,0.03]
[1757305513747,39.5777151,207.96,207.95,0.03]
[1757305514618,2.3977151,207.96,207.95,0.72]
[1757305514945,39.5777151,207.96,207.95,0.03]
[1757305515149,0.6,207.98,207.95,0.03]
[1757305515349,2.3977151,207.96,207.95,0.03]
[1757305515728,39.5777151,207.96,207.95,0.03]
[1757305517546,40.1777151,207.96,207.95,0.03]
[1757305517720,2.9977151,207.96,207.95,0.03]
[1757305517920,40.1777151,207.96,207.95,0.03]
[1757305519722,2.9977151,207.96,207.95,0.03]
[1757305520151,40.1777151,207.96,207.95,0.03]
[1757305520343,2.9977151,207.96,207.95,0.03]
[1757305520544,40.1777151,207.96,207.95,0.03]
[1757305521039,2.9977151,207.96,207.95,0.03]
[1757305521746,40.1777151,207.96,207.95,0.03]
[1757305522148,2.9977151,207.96,207.95,0.03]
[1757305522543,7.80633214,207.96,207.95,0.03]
[1757305523429,44.98633214,207.96,207.95,0.03]
[1757305524032,46.91241857,207.96,207.95,0.03]
[1757305524533,9.73241857,207.96,207.95,0.03]
[1757305524732,39.5777151,207.96,207.95,0.03]
[1757305525545,37.18,207.96,207.95,0.03]
[1757305525743,39.5777151,207.96,207.95,0.03]
[1757305527064,39.5777151,207.96,207.95,0.72]
[1757305527745,2.3977151,207.97,207.95,0.72]
[1757305527954,0.06,207.99,207.96,0.69]
[1757305528151,2.3977151,207.97,207.96,0.69]
[1757305528655,39.5777151,207.97,207.96,0.69]
[1757305529631,39.5777151,207.97,207.95,4.83884828]
[1757305529836,37.18,207.97,207.95,5.52884828]
[1757305530037,39.5777151,207.96,207.95,4.83884828]
[1757305530564,39.5777151,207.96,207.95,5.52884828]
[1757305532849,39.5777151,207.96,207.95,0.03]
[1757305533250,39.5777151,207.96,207.95,0.72]
[1757305534559,2.3977151,207.96,207.95,5.52882278]
[1757305534860,39.5777151,207.96,207.95,5.52882278]
[1757305535667,37.18,207.96,207.95,5.52882278]
[1757305541252,0.06,207.97,207.95,5.52882278]
[1757305541460,0.06,207.97,207.95,4.83882278]
[1757305541665,37.18,207.96,207.95,4.83882278]
[1757305541863,37.18,207.96,207.95,5.53882278]
[1757305542267,0.06,207.97,207.95,5.53882278]
[1757305542459,37.16,207.96,207.95,4.83882278]
[1757305543071,37.16,207.96,207.95,5.53882278]
[1757305543653,37.16,207.96,207.95,0.73]
[1757305544959,37.16,207.96,207.95,0.03]
[1757305545588,40.1577151,207.96,207.95,0.03]
[1757305546579,39.5577151,207.96,207.95,0.03]
[1757305548962,2.3977151,207.96,207.95,0.03]
[1757305549163,39.5577151,207.96,207.95,0.03]
[1757305549481,2.3977151,207.96,207.95,0.03]
[1757305549664,39.5577151,207.96,207.95,0.03]
[1757305550183,2.3977151,207.96,207.95,0.03]
[1757305550380,39.5577151,207.96,207.95,0.03]
[1757305552475,40.9104676,207.96,207.95,0.03]
[1757305553473,3.7504676,207.96,207.95,0.03]
[1757305553676,37.16,207.96,207.95,0.73]
[1757305555863,40.9104676,207.96,207.95,0.03]
[1757305556068,40.9104676,207.96,207.95,0.73]
[1757305557481,0.06,207.97,207.95,0.73]
[1757305557683,40.9104676,207.96,207.95,0.73]
[1757305558485,3.7504676,207.96,207.95,0.73]
[1757305558683,40.9104676,207.96,207.95,0.03]
[1757305559391,41.5104676,207.96,207.95,0.03]
[1757305559587,40.9104676,207.96,207.95,0.03]
[1757305559790,3.7504676,207.96,207.95,0.03]
[1757305559989,40.9104676,207.96,207.95,0.03]
[1757305560188,41.5104676,207.96,207.95,0.03]
[1757305560680,40.9104676,207.96,207.95,0.03]
[1757305561083,41.5104676,207.96,207.95,0.03]
[1757305561695,40.9104676,207.96,207.95,0.03]
[1757305564492,3.7504676,207.96,207.95,0.03]
[1757305564692,40.9104676,207.96,207.95,0.73]
[1757305564893,40.9104676,207.96,207.95,0.03]
[1757305565193,3.7504676,207.96,207.95,0.03]
[1757305565394,37.16,207.96,207.95,0.74]
[1757305566093,40.9104676,207.96,207.95,0.74]
[1757305566487,37.16,207.96,207.95,0.74]
[1757305567098,37.16,207.96,207.95,0.03]
[1757305567798,40.9104676,207.96,207.95,0.03]
[1757305568472,37.16,207.96,207.95,0.74]
[1757305568913,37.16,207.96,207.95,0.03]
[1757305569889,3.7504676,207.96,207.95,0.03]
[1757305570088,40.9104676,207.96,207.95,0.03]
[1757305574886,0.06,207.97,207.95,0.03]
[1757305575087,37.16,207.96,207.95,0.74]
[1757305577508,0.06,207.97,207.95,0.74]
[1757305577713,37.16,207.96,207.95,5.54877592]
[1757305578214,0.06,207.97,207.95,5.54877592]
[1757305578518,0.06,207.97,207.96,0.71]
[1757305578699,0.06,207.97,207.96,4.4604676]
[1757305578700,37.2,207.97,207.96,4.4604676]
[1757305579710,37.2,207.97,207.96,9.26908464]
[1757305580405,0.06,207.97,207.96,9.26908464]
[1757305580595,0.06,207.99,207.98,39.59559401]
[1757305580914,37.2,207.99,207.98,43.34606161]
[1757305581126,37.2,207.99,207.98,44.05606161]
[1757305581897,37.2,207.99,207.98,48.86421624]
[1757305582100,50.70775215,208.07,208.04,39.59559401]
[1757305582101,0.06,208.07,208.04,39.59559401]
[1757305582415,0.06,208.07,208.04,43.34606161]
[1757305582716,0.06,208.07,208.06,3.7504676]
[1757305583216,0.06,208.07,208.06,4.4604676]
[1757305583915,0.06,208.07,208.04,0.71]
[1757305584216,0.06,208.07,208.05,3.7504676]
[1757305584622,0.06,208.07,208.03,26.71]
[1757305584923,0.06,208.07,208.04,4.4604676]
[1757305585501,0.06,208.07,208.03,29.7504676]
[1757305585799,0.06,208.07,208.03,30.4604676]
[1757305586412,0.06,208.07,208.04,0.71]
[1757305586607,0.06,208.07,208.03,34.55744074]
[1757305586808,0.06,208.07,208.04,4.4604676]
[1757305587326,0.06,208.07,208.04,0.71]
[1757305588102,3.8104676,208.07,208.03,26.0]
[1757305588402,4.4704676,208.07,208.03,26.0]
[1757305588599,0.06,208.07,208.04,0.71]
[1757305588798,0.06,208.07,208.03,29.7504676]
[1757305589005,4.4704676,208.07,208.03,26.0]
[1757305589322,3.8104676,208.07,208.03,26.0]
[1757305589526,0.72,208.07,208.03,26.0]
[1757305589845,0.72,208.07,207.98,13.59559401]
[1757305589846,3.7504676,208.06,208.0,0.71]
[1757305590024,3.7504676,208.04,207.99,4.4604676]
[1757305590209,3.7504676,208.04,208.0,0.71]
[1757305590530,37.14,208.03,208.0,0.71]
[1757305590721,37.8,208.03,207.98,0.71]
[1757305591027,3.7504676,208.02,207.97,4.80837551]
[1757305591199,3.7504676,208.02,207.98,26.71]
[1757305591404,3.7504676,208.02,207.98,0.71]
[1757305591606,3.7504676,208.02,207.98,26.71]
[1757305594121,3.7504676,208.02,207.99,0.71]
[1757305594312,3.7504676,208.02,207.98,26.0]
[1757305594512,3.7504676,207.99,207.95,0.03]
[1757305594826,40.8904676,207.98,207.95,0.03]
[1757305595231,40.8904676,207.98,207.95,0.74]
[1757305596305,37.14,207.98,207.95,0.74]
[1757305596533,40.8904676,207.98,207.95,0.74]
[1757305596825,4.83926818,208.06,207.95,9.29930024]
[1757305597030,37.14,208.05,207.97,3.7504676]
[1757305597328,37.14,208.05,208.0,3.7504676]
[1757305597525,40.8904676,208.05,208.01,0.71]
[1757305598430,40.8904676,208.05,208.02,0.71]
[1757305598620,3.7504676,208.04,208.0,0.71]
[1757305599532,0.66,208.03,207.97,26.0]
[1757305600029,3.7504676,208.0,207.95,0.03]
[1757305600236,40.8904676,207.99,207.95,0.03]
[1757305600628,40.8904676,207.99,207.95,0.74]
[1757305601011,40.8904676,207.99,207.95,0.03]
[1757305601211,40.8904676,207.99,207.96,0.71]
[1757305602041,37.14,207.99,207.97,0.71]
[1757305602512,37.14,207.99,207.95,5.54881109]
[1757305602718,37.14,207.99,207.96,0.71]
[1757305603353,37.14,207.99,207.95,0.03]
[1757305603354,40.8904676,207.99,207.95,0.03]
[1757305603634,40.8904676,207.99,207.95,0.74]
[1757305604134,3.7504676,207.96,207.95,0.03]
[1757305604534,4.4104676,207.96,207.95,0.03]
[1757305604915,0.66,207.96,207.95,0.03]
[1757305605230,4.4104676,207.96,207.95,0.03]
[1757305605940,9.21908464,207.96,207.95,0.03]
[1757305606425,4.4104676,207.96,207.95,0.03]
[1757305606930,9.21908464,207.96,207.95,0.03]
[1757305607647,3.7504676,207.98,207.95,0.03]
[1757305607849,37.14,207.97,207.95,0.74]
[1757305608149,37.14,207.97,207.96,0.71]
[1757305608546,37.14,207.97,207.95,0.03]
[1757305608849,40.8904676,207.97,207.95,0.03]
[1757305609056,40.8904676,207.97,207.95,0.74]
[1757305610127,26.0,208.05,207.95,0.03]
[1757305610336,3.7504676,208.01,207.96,0.71]
[1757305610546,37.14,208.0,207.96,4.4604676]
[1757305610736,37.14,207.99,207.97,0.71]
[1757305610934,3.7504676,208.03,207.98,0.71]
[1757305611137,37.14,208.02,207.99,0.71]
[1757305611335,37.14,208.02,207.97,3.7504676]
[1757305611649,37.14,208.02,207.98,0.71]
[1757305611834,37.14,208.02,207.97,3.7504676]
[1757305612037,37.14,208.02,207.99,0.71]
[1757305612942,37.14,208.02,207.97,7.91700914]
[1757305613143,37.14,208.02,207.98,0.71]
[1757305615251,37.14,208.02,207.97,7.20700914]
[1757305615252,39.53864137,208.02,207.99,0.71]
[1757305615457,39.53864137,208.02,208.0,0.71]
[1757305615458,37.14,208.02,208.0,0.71]
[1757305615951,37.14,208.02,208.01,0.71]
[1757305616957,37.14,208.02,208.0,2.39864137]
[1757305617154,37.14,208.02,208.0,3.10864137]
[1757305617356,37.14,208.02,208.01,4.80746117]
[1757305617752,37.14,208.02,208.0,0.71]
[1757305618861,37.14,208.02,208.0,5.51761758]
[1757305621373,37.14,208.02,207.98,88.01674645]
[1757305621559,37.14,208.02,207.99,0.71]
[1757305621748,37.14,208.02,208.0,0.71]
[1757305623560,37.14,208.02,208.01,0.71]
[1757305625639,37.14,208.02,208.01,5.51746117]
[1757305627661,0.06,208.07,208.01,88.01610254]
[1757305627878,0.06,208.07,208.06,2.39864137]
[1757305628361,0.06,208.07,208.06,3.07864137]
[1757305628557,0.06,208.07,208.06,42.67423538]
[1757305629851,0.06,208.07,208.06,47.48054125]
[1757305631369,0.06,208.07,208.06,45.08189988]
[1757305631571,0.06,208.07,208.06,47.48054125]
[1757305631969,0.06,208.07,208.06,61.91090273]
[1757305634271,0.06,208.07,208.06,142.01090273]
[1757305640961,1e-08,208.1,208.08,42.48559401]
[1757305641162,1e-08,208.1,208.09,54.47880086]
[1757305641476,1e-08,208.1,208.09,59.28441381]
[1757305641673,1e-08,208.1,208.09,59.96441381]
[1757305642073,1e-08,208.1,208.09,61.88790687]
[1757305645878,1e-08,208.1,208.09,52.29334139]
[1757305646081,1e-08,208.1,208.09,132.33334139]
[1757305646584,1e-08,208.1,208.09,141.92790687]
[1757305648563,1e-08,208.1,208.09,132.33334139]
[1757305648863,1e-08,208.1,208.09,131.65334139]
[1757305649278,0.66000001,208.1,208.08,84.84583802]
[1757305649481,0.66000001,208.1,208.09,2.39864137]
[1757305649966,1e-08,208.1,208.09,2.39864137]
[1757305650493,0.66000001,208.1,208.08,2.39864137]
[1757305650679,0.66,208.09,208.07,2.39864137]
[1757305650887,0.66,208.09,208.08,2.39864137]
[1757305651086,1e-08,208.1,208.08,2.39864137]
[1757305651276,1e-08,208.1,208.05,30.80652164]
[1757305651588,1e-08,208.1,208.09,2.39864137]
[1757305652594,1e-08,208.1,208.06,0.68]
[1757305652595,0.66000001,208.1,208.08,2.39864137]
[1757305652895,1e-08,208.1,208.09,29.07864137]
[1757305654787,1e-08,208.1,208.09,33.20425432]
[1757305655489,1e-08,208.1,208.09,33.23425432]
[1757305656180,1e-08,208.1,208.09,28.42864137]
[1757305657786,1e-08,208.1,208.09,108.46864137]
[1757305657986,0.66000001,208.1,208.09,108.46864137]
[1757305658288,0.66000001,208.1,208.09,80.07]
[1757305658481,1e-08,208.1,208.09,80.07]
[1757305659992,0.66000001,208.1,208.09,80.07]
[1757305662797,1e-08,208.1,208.09,80.07]
[1757305663786,1e-08,208.1,208.09,0.03]
[1757305665693,1e-08,208.1,208.09,3.09864137]
[1757305666179,1e-08,208.1,208.09,0.03]
[1757305668093,0.66000001,208.1,208.09,0.03]
[1757305668981,3.05864138,208.1,208.09,0.03]
[1757305670284,1e-08,208.1,208.09,0.03]
[1757305673103,2.39864138,208.1,208.09,0.03]
[1757305673796,1e-08,208.1,208.09,0.03]
[1757305675305,4.40507483,208.1,208.09,0.03]
[1757305675690,37.90000001,208.1,208.09,0.03]
[1757305676000,41.64507483,208.1,208.09,0.03]
[1757305676704,40.98507483,208.1,208.09,0.03]
[1757305677498,37.24000001,208.1,208.09,0.03]
[1757305677790,40.98507483,208.1,208.09,0.03]
[1757305679204,45.79045685,208.1,208.09,0.03]
[1757305680188,40.98507483,208.1,208.09,0.03]
[1757305680901,46.45045685,208.1,208.09,0.03]
[1757305681786,41.64507483,208.1,208.09,0.03]
[1757305682111,46.45045685,208.1,208.09,0.03]
[1757305682606,41.64507483,208.1,208.09,0.03]
[1757305683107,46.45045685,208.1,208.09,0.03]
[1757305683479,37.24000001,208.1,208.09,0.03]
[1757305685607,1e-08,208.1,208.09,0.7]
[1757305685905,37.22000001,208.1,208.09,0.7]
[1757305688188,37.22000001,208.1,208.09,0.03]
[1757305688388,37.22000001,208.1,208.09,0.7]
[1757305689799,37.22000001,208.1,208.09,5.50561295]
[1757305690195,1e-08,208.1,208.09,9.25068777]
[1757305690396,37.20000001,208.1,208.09,9.25068777]
[1757305691492,1e-08,208.1,208.09,89.29068777]
[1757305691912,1e-08,208.1,208.09,102.88628178]
[1757305692618,1e-08,208.11,208.09,104.80995986]
[1757305692913,1e-08,208.11,208.1,8.16014964]
[1757305693226,1e-08,208.12,208.11,13.59559401]
[1757305693391,1e-08,208.12,208.11,102.85581995]
[1757305694700,0.1,208.18,208.14,39.59559401]
[1757305695008,0.1,208.18,208.14,80.04]
[1757305695215,0.1,208.18,208.17,26.0]
[1757305695589,0.1,208.18,208.17,31.47376615]
[1757305695905,0.1,208.18,208.17,9.21884097]
[1757305696214,0.1,208.18,208.17,5.47376615]
[1757305696817,0.1,208.18,208.17,9.21884097]
[1757305698108,0.1,208.18,208.17,35.21884097]
[1757305699518,0.1,208.18,208.17,115.25884097]
[1757305713325,0.1,208.18,208.17,128.85443498]
[1757305713638,0.1,208.18,208.17,102.85443498]
[1757305714131,0.1,208.18,208.17,99.10936016]
[1757305714330,0.1,208.18,208.17,102.85443498]
[1757305717535,1e-08,208.18,208.17,102.85443498]
[1757305717722,1e-08,208.18,208.17,131.74443498]
[1757305717917,1e-08,208.18,208.17,146.16369911]
[1757305718329,1e-08,208.18,208.17,183.28369911]
[1757305718835,1e-08,208.18,208.17,151.05436874]
[1757305719018,1e-08,208.18,208.17,188.17436874]
[1757305719214,1e-08,208.18,208.17,151.05436874]
[1757305719626,1e-08,208.18,208.17,188.15436874]
[1757305721822,1e-08,208.18,208.17,191.89944356]
[1757305722422,1e-08,208.18,208.17,151.05436874]
[1757305722628,1e-08,208.18,208.17,188.15436874]
[1757305722845,1e-08,208.18,208.17,151.05436874]
[1757305723033,0.06,208.21,208.2,39.59559401]
[1757305723231,0.06,208.21,208.2,123.38066882]
[1757305723436,0.06,208.21,208.2,128.89374278]
[1757305723636,0.06,208.23,208.2,128.89374278]
[1757305723637,0.06,208.23,208.22,39.59559401]
[1757305723826,0.06,208.23,208.22,123.38066882]
[1757305724031,0.06,208.23,208.22,124.09066882]
[1757305724934,0.06,208.23,208.22,130.81566519]
[1757305729550,37.76,208.3,208.25,39.59559401]
[1757305729731,37.76,208.3,208.25,123.32066882]
[1757305730251,0.66,208.29,208.25,123.32066882]
[1757305730647,0.66,208.29,208.25,128.12258958]
[1757305732231,0.66,208.29,208.25,128.83258958]
[1757305733038,0.76,208.26,208.25,29.74507482]
[1757305734439,0.76,208.26,208.25,33.19386734]
[1757305736445,0.1,208.26,208.25,33.19386734]
[1757305737850,0.1,208.26,208.25,30.80192076]
[1757305738048,0.76,208.26,208.25,28.39194658]
[1757305738552,0.1,208.26,208.25,33.19386734]
[1757305740758,0.1,208.26,208.25,47.49946135]
[1757305741149,0.1,208.26,208.25,139.50470005]
[1757305741352,0.1,208.26,208.25,141.89664663]
[1757305743166,0.1,208.26,208.25,141.89664663]
[1757305745142,0.1,208.26,208.25,141.39664663]
[1757305745960,0.1,208.26,208.25,122.28913186]
[1757305746154,0.1,208.26,208.25,112.67386733]
[1757305746356,0.1,208.26,208.25,114.59634348]
[1757305747567,0.1,208.26,208.25,128.89193749]
[1757305750947,0.1,208.26,208.25,128.19193749]
[1757305751347,0.1,208.26,208.25,128.89193749]
[1757305754457,1e-08,208.26,208.25,128.89193749]
[1757305756063,1e-08,208.26,208.25,128.19193749]
[1757305757770,1e-08,208.26,208.25,157.08193749]
[1757305758275,1e-08,208.26,208.25,157.78193749]
[1757305758973,1e-08,208.26,208.25,157.08193749]
[1757305759472,1e-08,208.26,208.25,157.78193749]
[1757305759772,1e-08,208.26,208.25,154.68999091]
[1757305759976,1e-08,208.26,208.25,157.08193749]
[1757305760855,1e-08,208.26,208.25,154.68999091]
[1757305761073,1e-08,208.26,208.25,157.08193749]
[1757305761281,1e-08,208.26,208.25,112.2043969]
[1757305761282,0.66000001,208.26,208.25,112.2043969]
[1757305761454,0.66000001,208.26,208.25,114.59634348]
[1757305761959,1e-08,208.26,208.25,114.59634348]
[1757305762554,0.66000001,208.26,208.25,112.67386733]
[1757305763072,0.66000001,208.26,208.25,114.59634348]
[1757305763276,1e-08,208.26,208.25,114.59634348]
[1757305764665,1e-08,208.26,208.25,34.61634349]
[1757305765982,1e-08,208.26,208.25,35.31634349]
[1757305770678,1e-08,208.26,208.25,115.29634348]
[1757305770877,1e-08,208.26,208.25,112.2043969]
[1757305771181,1e-08,208.26,208.25,114.59634348]
[1757305771569,1e-08,208.26,208.25,115.29634348]
[1757305773063,1e-08,208.26,208.25,128.89193749]
[1757305775875,1e-08,208.26,208.25,128.39193749]
[1757305777684,1e-08,208.26,208.25,157.28193749]
[1757305778790,1e-08,208.26,208.25,157.31193749]
[1757305779094,1e-08,208.26,208.25,194.39193749]
[1757305779576,1e-08,208.26,208.25,157.31193749]
[1757305781891,1e-08,208.26,208.25,156.61193749]
[1757305782193,1e-08,208.26,208.25,127.72193749]
[1757305782690,1e-08,208.26,208.25,128.40193749]
[1757305787992,1e-08,208.26,208.25,157.29193749]
[1757305792109,1e-08,208.26,208.25,126.00999091]
[1757305792403,1e-08,208.26,208.25,128.40193749]
[1757305796297,1e-08,208.26,208.25,126.00999091]
[1757305796485,0.66000001,208.26,208.25,120.52807015]
[1757305797898,1e-08,208.26,208.25,125.32999091]
[1757305798097,0.66000001,208.26,208.25,1.95247615]
[1757305798302,0.66000001,208.26,208.25,0.03]
[1757305798303,4.39702086,208.26,208.25,0.03]
[1757305798799,0.66000001,208.26,208.25,0.03]
[1757305799285,0.66000001,208.26,208.25,4.83192076]
[1757305799783,0.66000001,208.26,208.25,9.66384152]
[1757305800185,1e-08,208.26,208.25,27.67645638]
[1757305802712,1e-08,208.26,208.25,23.93943553]
[1757305803007,1e-08,208.26,208.25,27.67645638]
[1757305805796,1e-08,208.26,208.25,136.54645637]
[1757305807395,1e-08,208.26,208.25,132.80943552]
[1757305807712,1e-08,208.26,208.25,136.54645637]
[1757305809204,0.06,208.29,208.28,3.73702085]
[1757305809601,0.06,208.29,208.28,18.04261486]
[1757305810219,0.06,208.29,208.28,21.77963571]
[1757305810411,0.66,208.36,208.32,17.33261486]
[1757305810598,0.66,208.36,208.32,97.31261484]
[1757305810801,3.73702085,208.38,208.32,97.31261484]
[1757305811005,0.66,208.35,208.33,14.41302938]